bitfinex/quotes_SOLUSD_20251125
["timestamp","ask_amount","ask_price","bid_price","bid_amount"]
[1764057542485,8.02014039,136.61,136.58,0.1]
[1764057542985,8.02014039,136.61,136.58,0.79]
[1764057543177,7.32014039,136.61,136.58,0.1]
[1764057543380,2.3069472,136.59,136.58,0.1]
[1764057543888,2.3069472,136.6,136.58,0.1]
[1764057544389,2.3069472,136.59,136.58,0.1]
[1764057544583,2.3069472,136.6,136.58,0.1]
[1764057544897,3.0069472,136.6,136.58,0.1]
[1764057545084,10.32761723,136.6,136.58,0.1]
[1764057545282,3.0069472,136.59,136.58,0.1]
[1764057545486,19.13709017,136.59,136.58,0.1]
[1764057545859,8.80994492,136.58,136.51,50.1]
[1764057546058,2.3069472,136.53,136.51,0.1]
[1764057546255,29.4966528,136.57,136.49,3.05]
[1764057546488,2.3069472,136.52,136.49,3.05]
[1764057546878,3.0069472,136.52,136.49,3.05]
[1764057547093,10.33205761,136.52,136.49,3.05]
[1764057547785,9.63205761,136.52,136.49,3.05]
[1764057547981,2.3069472,136.52,136.49,10.37649748]
[1764057548299,0.7,136.51,136.47,3.26]
[1764057548689,0.7,136.51,136.48,0.69]
[1764057549194,8.02547946,136.51,136.48,0.69]
[1764057549396,10.33242666,136.51,136.48,0.69]
[1764057549599,10.33242666,136.51,136.47,11.27732585]
[1764057550768,10.33242666,136.51,136.47,10.58732585]
[1764057550968,10.33242666,136.51,136.48,0.69]
[1764057551369,27.94373442,136.52,136.48,8.01694639]
[1764057551588,27.94373442,136.52,136.48,0.69]
[1764057551802,27.94373442,136.52,136.49,0.69]
[1764057552289,20.61862215,136.52,136.49,0.69]
[1764057552603,32.34581396,136.53,136.49,0.69]
[1764057552978,10.33150466,136.53,136.49,0.69]
[1764057553183,9.63150466,136.53,136.49,0.69]
[1764057553390,7.32332478,136.55,136.5,59.63295452]
[1764057553685,2.3069472,136.54,136.5,57.32600732]
[1764057553889,3.0069472,136.54,136.51,0.69]
[1764057554089,3.0069472,136.55,136.51,0.69]
[1764057554996,2.3069472,136.54,136.51,0.69]
[1764057555197,3.0069472,136.55,136.51,0.69]
[1764057555387,10.33030835,136.55,136.51,8.01505564]
[1764057555801,3.0069472,136.55,136.52,50.0]
[1764057556009,10.33032995,136.55,136.51,8.01505564]
[1764057556310,10.33032995,136.55,136.51,0.69]
[1764057556903,0.7,136.54,136.51,0.69]
[1764057557084,3.0069472,136.54,136.51,0.69]
[1764057557280,9.63032995,136.55,136.51,8.01532428]
[1764057557487,10.33032995,136.55,136.51,8.01532428]
[1764057558013,10.33032995,136.55,136.52,0.69]
[1764057558722,4.31052685,136.55,136.51,8.01535364]
[1764057559017,11.63392929,136.55,136.51,8.01535364]
[1764057560603,3.61052685,136.52,136.48,50.69]
[1764057560922,3.61052685,136.52,136.48,58.01687885]
[1764057561122,25.62483615,136.54,136.5,50.0]
[1764057561425,32.94877186,136.54,136.5,50.0]
[1764057561726,10.93446256,136.54,136.51,0.69]
[1764057562307,11.63446256,136.54,136.51,0.69]
[1764057564810,4.33052685,136.53,136.49,7.99633689]
[1764057565018,4.33052685,136.53,136.5,3.26]
[1764057565203,4.33052685,136.53,136.5,3.93]
[1764057565398,0.72,136.52,136.5,3.26]
[1764057565712,3.61052685,136.53,136.5,3.93]
[1764057565913,3.61052685,136.53,136.5,3.26]
[1764057566110,11.65446256,136.54,136.51,0.67]
[1764057566313,8.04393571,136.54,136.51,0.67]
[1764057566512,11.65446256,136.54,136.51,0.67]
[1764057567195,11.65446256,136.54,136.5,61.25571084]
[1764057567390,11.65446256,136.54,136.5,57.99571084]
[1764057567596,11.65446256,136.54,136.51,0.67]
[1764057568094,8.04393571,136.54,136.5,0.67]
[1764057568316,3.61052685,136.53,136.5,3.93]
[1764057568806,4.33052685,136.53,136.5,3.93]
[1764057568995,3.61052685,136.53,136.5,3.93]
[1764057569199,10.93446256,136.54,136.5,11.25587337]
[1764057569396,11.65446256,136.54,136.5,11.25587337]
[1764057569622,11.65446256,136.54,136.51,0.67]
[1764057570404,11.65446256,136.54,136.5,11.25587337]
[1764057570823,11.65446256,136.54,136.5,0.67]
[1764057571027,4.33052685,136.53,136.5,3.93]
[1764057571626,3.61052685,136.53,136.5,3.93]
[1764057571825,4.33052685,136.53,136.5,3.93]
[1764057572007,10.93446256,136.54,136.5,11.25578733]
[1764057572216,0.72,136.53,136.5,11.25578733]
[1764057572825,11.6553332,136.53,136.5,0.67]
[1764057573133,3.61052685,136.52,136.48,57.32695097]
[1764057573304,4.33052685,136.52,136.48,60.58695097]
[1764057573504,0.72,136.51,136.48,60.58695097]
[1764057573729,0.72,136.51,136.48,61.25695097]
[1764057574320,7.32512697,136.52,136.49,0.67]
[1764057575123,8.04512697,136.52,136.49,0.67]
[1764057575294,7.32512697,136.52,136.49,0.67]
[1764057575493,7.32512697,136.52,136.49,7.99650817]
[1764057575904,8.04512697,136.52,136.49,7.99650817]
[1764057577225,7.32512697,136.52,136.49,10.58650817]
[1764057577413,7.32512697,136.52,136.49,11.25650817]
[1764057577925,10.93509281,136.53,136.5,0.67]
[1764057578118,11.65509281,136.53,136.5,0.67]
[1764057578625,8.04456596,136.53,136.5,0.67]
[1764057578923,7.32456596,136.53,136.5,0.67]
[1764057579124,7.32396096,136.54,136.5,61.60648009]
[1764057579505,7.32396096,136.54,136.51,0.67]
[1764057579904,8.04396096,136.54,136.51,0.67]
[1764057581031,4.33052685,136.54,136.51,3.26]
[1764057581207,3.61052685,136.53,136.51,3.26]
[1764057582248,3.61052685,136.53,136.51,3.93]
[1764057582547,11.65461309,136.54,136.51,3.93]
[1764057583043,10.93410341,136.55,136.51,10.58538604]
[1764057583245,11.65410341,136.55,136.52,0.67]
[1764057583433,0.72,136.54,136.51,3.93]
[1764057583632,4.33052685,136.54,136.51,3.93]
[1764057583833,4.33052685,136.54,136.51,3.26]
[1764057584658,0.72,136.54,136.51,3.93]
[1764057584853,11.65451797,136.54,136.51,3.26]
[1764057585759,11.65451797,136.54,136.48,57.9968983]
[1764057585760,3.61052685,136.52,136.48,57.9968983]
[1764057585936,3.61052685,136.52,136.49,3.26]
[1764057586133,0.72,136.53,136.49,3.93]
[1764057586134,3.61052685,136.53,136.49,3.93]
[1764057586336,4.33052685,136.52,136.49,3.93]
[1764057586651,0.72,136.52,136.49,3.93]
[1764057586947,8.04514109,136.52,136.49,3.93]
[1764057587665,11.65566794,136.52,136.49,3.26]
[1764057588233,11.65566794,136.52,136.48,57.9968983]
[1764057588449,11.65566794,136.52,136.49,3.26]
[1764057588749,4.33052685,136.51,136.48,50.0]
[1764057588955,3.61052685,136.49,136.47,3.26]
[1764057589152,4.33052685,136.5,136.47,3.26]
[1764057590745,11.65682534,136.5,136.47,3.26]
[1764057591125,10.93682534,136.5,136.47,3.26]
[1764057591331,11.65682534,136.5,136.47,3.93]
[1764057591750,0.72,136.5,136.47,3.93]
[1764057591935,4.33052685,136.5,136.47,3.93]
[1764057592341,3.61052685,136.49,136.46,53.26]
[1764057592557,4.33052685,136.49,136.46,50.0]
[1764057592749,3.61052685,136.47,136.45,3.26]
[1764057592946,11.6577222,136.48,136.45,3.26]
[1764057593273,11.6577222,136.48,136.45,3.96]
[1764057593458,4.33052685,136.48,136.45,3.96]
[1764057593642,11.6576614,136.48,136.45,3.26]
[1764057593844,11.6576683,136.48,136.45,3.26]
[1764057594044,0.72,136.48,136.45,3.96]
[1764057594244,0.72,136.48,136.45,0.7]
[1764057594559,11.61712918,136.49,136.46,3.96]
[1764057595245,8.00560263,136.51,136.47,0.7]
[1764057595448,7.32511455,136.52,136.48,56.87052685]
[1764057595854,7.32511455,136.52,136.49,0.7]
[1764057596266,8.00511455,136.52,136.49,0.7]
[1764057596852,3.61052685,136.51,136.48,53.96]
[1764057597051,4.29052685,136.51,136.48,53.96]
[1764057597249,11.6156414,136.52,136.48,53.96]
[1764057597569,10.9356414,136.52,136.48,53.96]
[1764057597754,0.68,136.51,136.48,53.96]
[1764057598265,8.00511455,136.52,136.49,0.7]
[1764057598466,8.00511455,136.52,136.5,3.26]
[1764057598770,7.32511455,136.52,136.5,3.26]
[1764057599360,10.93445702,136.54,136.49,0.7]
[1764057599675,4.29052685,136.52,136.49,3.26]
[1764057600152,0.68,136.52,136.49,3.26]
[1764057600472,4.29052685,136.51,136.48,3.26]
[1764057600672,11.61628132,136.51,136.48,3.26]
[1764057601464,4.29052685,136.5,136.48,3.26]
[1764057601669,4.29052685,136.5,136.47,3.26]
[1764057602182,7.32575447,136.51,136.47,3.26]
[1764057602472,7.32515135,136.52,136.48,54.31052685]
[1764057602646,7.32439756,136.53,136.49,3.61052685]
[1764057602846,8.00439756,136.53,136.5,3.26]
[1764057603375,0.68,136.54,136.5,57.57052685]
[1764057603586,0.68,136.54,136.51,0.7]
[1764057603753,4.29052685,136.54,136.51,0.7]
[1764057604163,3.61052685,136.54,136.51,3.26]
[1764057604363,0.68,136.53,136.51,3.26]
[1764057604574,41.4856355,136.57,136.52,61.63529911]
[1764057604575,14.87301526,136.57,136.52,61.63529911]
[1764057604757,4.29052685,136.6,136.55,53.61052685]
[1764057604956,3.61052685,136.6,136.56,3.26]
[1764057605246,4.29052685,136.59,136.56,3.26]
[1764057605459,3.61052685,136.6,136.56,3.96]
[1764057605868,26.29850387,136.62,136.57,54.31052685]
[1764057606046,11.61009938,136.62,136.58,0.7]
[1764057606275,0.68,136.61,136.57,54.31052685]
[1764057606575,0.68,136.61,136.58,3.26]
[1764057606781,22.58882279,136.63,136.58,7.57052685]
[1764057606951,3.61052685,136.62,136.58,3.96]
[1764057607156,4.29052685,136.62,136.58,3.96]
[1764057607377,0.68,136.62,136.58,7.57052685]
[1764057607601,0.2,136.68,136.6,3.61052685]
[1764057607750,0.2,136.68,136.65,3.61052685]
[1764057607952,0.2,136.68,136.66,3.61052685]
[1764057608250,0.2,136.68,136.66,4.59484999]
[1764057608769,0.2,136.68,136.66,14.88795696]
[1764057608960,0.2,136.68,136.66,15.1722801]
[1764057609371,0.2,136.68,136.66,31.4811441]
[1764057609563,0.2,136.68,136.66,90.29108902]
[1764057609762,0.2,136.68,136.66,73.98222502]
[1764057611176,0.2,136.68,136.66,70.72222502]
[1764057611478,0.2,136.68,136.66,73.98222502]
[1764057612781,0.2,136.68,136.66,57.85484999]
[1764057612965,0.2,136.68,136.66,81.33898253]
[1764057613166,0.2,136.68,136.66,78.07898253]
[1764057613476,0.2,136.68,136.66,81.33898253]
[1764057613778,0.2,136.68,136.66,77.87061725]
[1764057613969,0.2,136.68,136.66,81.5011441]
[1764057614366,0.2,136.68,136.66,70.57318714]
[1764057614571,0.9,136.67,136.63,50.72]
[1764057614775,0.9,136.67,136.64,3.26]
[1764057615084,0.2,136.67,136.63,50.0]
[1764057615289,3.61052685,136.64,136.6,50.0]
[1764057615496,0.7,136.66,136.62,56.87052685]
[1764057615659,3.61052685,136.66,136.62,53.26]
[1764057615990,3.61052685,136.65,136.62,53.26]
[1764057616155,3.61052685,136.64,136.62,3.26]
[1764057616359,0.7,136.65,136.62,53.26]
[1764057616775,4.31052685,136.65,136.62,53.26]
[1764057617365,0.7,136.65,136.62,60.57950169]
[1764057617560,0.7,136.65,136.62,53.26]
[1764057617977,3.61052685,136.64,136.62,3.26]
[1764057618194,4.31052685,136.65,136.62,53.26]
[1764057618479,0.7,136.65,136.62,53.26]
[1764057618867,3.61052685,136.66,136.62,60.5792667]
[1764057619079,0.2,136.67,136.64,50.0]
[1764057619272,0.2,136.67,136.64,53.26]
[1764057619460,0.9,136.67,136.64,53.26]
[1764057620594,0.2,136.67,136.64,59.47094342]
[1764057620804,0.2,136.67,136.64,66.78910991]
[1764057621004,0.2,136.67,136.64,61.29816649]
[1764057621181,0.2,136.67,136.64,66.78910991]
[1764057622191,0.2,136.67,136.66,50.0]
[1764057622387,0.2,136.67,136.66,53.26]
[1764057622906,0.2,136.67,136.66,60.57743011]
[1764057623087,0.2,136.67,136.66,63.76269667]
[1764057623288,0.2,136.67,136.66,60.57743011]
[1764057623701,0.2,136.67,136.66,53.26]
[1764057623897,0.2,136.67,136.66,60.57743011]
[1764057624703,0.2,136.67,136.66,53.26]
[1764057625194,0.2,136.67,136.66,60.57743011]
[1764057625394,0.2,136.67,136.66,3.26]
[1764057625586,6.37094342,136.67,136.65,3.26]
[1764057625792,6.37094342,136.67,136.64,53.26]
[1764057625987,5.49094342,136.65,136.64,3.26]
[1764057626186,5.49094342,136.65,136.63,3.26]
[1764057626392,6.17094342,136.65,136.63,3.26]
[1764057626803,0.68,136.65,136.63,3.26]
[1764057627209,5.49094342,136.64,136.61,50.0]
[1764057627408,5.49094342,136.62,136.58,50.0]
[1764057627706,5.49094342,136.63,136.6,50.0]
[1764057628194,0.68,136.62,136.6,50.0]
[1764057628888,0.68,136.62,136.59,3.26]
[1764057629315,6.17094342,136.62,136.59,3.26]
[1764057629611,6.17094342,136.62,136.59,10.58101781]
[1764057629819,0.68,136.62,136.59,10.58101781]
[1764057631598,0.68,136.62,136.6,50.0]
[1764057631814,0.68,136.62,136.59,10.58101781]
[1764057632010,5.49094342,136.61,136.59,3.26]
[1764057632413,0.68,136.61,136.59,3.26]
[1764057632723,6.17094342,136.61,136.59,3.26]
[1764057633214,0.68,136.61,136.59,3.26]
[1764057633712,0.68,136.61,136.59,10.58106611]
[1764057634220,0.68,136.61,136.59,3.26]
[1764057634518,5.49094342,136.6,136.58,50.0]
[1764057634821,12.8125578,136.59,136.54,57.32386113]
[1764057635117,5.49094342,136.58,136.54,60.58386113]
[1764057635312,6.17094342,136.58,136.54,60.58386113]
[1764057635516,0.68,136.57,136.54,53.26]
[1764057636108,0.68,136.59,136.54,66.74466754]
[1764057636303,0.68,136.58,136.55,5.49094342]
[1764057636621,0.68,136.59,136.56,58.75094342]
[1764057636800,0.68,136.59,136.56,60.58246613]
[1764057637112,0.68,136.59,136.56,60.58277495]
[1764057637519,0.68,136.59,136.56,53.26]
[1764057638218,6.17094342,136.61,136.56,66.74371373]
[1764057638817,0.68,136.6,136.56,66.74371373]
[1764057639600,13.49161607,136.6,136.56,60.58277031]
[1764057639797,5.49094342,136.59,136.56,50.0]
[1764057639999,6.17094342,136.59,136.56,60.58270306]
[1764057640202,0.68,136.58,136.56,50.0]
[1764057640521,0.68,136.58,136.52,3.26]
[1764057640522,5.49094342,136.57,136.52,3.26]
[1764057640723,5.49094342,136.54,136.49,62.8174424]
[1764057640908,5.49094342,136.53,136.5,3.26]
[1764057641297,0.68,136.52,136.5,3.26]
[1764057641622,6.17094342,136.53,136.5,10.58600512]
[1764057641817,6.17094342,136.53,136.5,3.26]
[1764057642702,6.17094342,136.53,136.5,10.58595645]
[1764057643026,6.17094342,136.53,136.5,3.26]
[1764057643223,0.68,136.53,136.5,3.26]
[1764057643426,0.68,136.53,136.5,10.58592173]
[1764057644129,0.68,136.53,136.5,3.26]
[1764057645132,0.68,136.55,136.51,55.49094342]
[1764057645427,8.00386889,136.54,136.51,50.0]
[1764057645839,0.68,136.53,136.5,3.26]
[1764057646217,0.68,136.53,136.5,10.58594435]
[1764057646417,0.68,136.53,136.5,3.26]
[1764057646830,6.17094342,136.53,136.5,3.26]
[1764057647214,0.68,136.52,136.5,3.26]
[1764057648108,12.81568526,136.53,136.5,3.26]
[1764057648304,6.17094342,136.53,136.5,3.26]
[1764057648510,6.17094342,136.52,136.47,66.308864]
[1764057648707,5.49094342,136.49,136.44,13.48996636]
[1764057649034,7.32453851,136.53,136.45,3.26]
[1764057649035,5.49094342,136.48,136.45,3.26]
[1764057649220,5.49094342,136.49,136.45,3.26]
[1764057649520,5.49094342,136.49,136.45,10.58850416]
[1764057649721,0.68,136.48,136.45,10.58850416]
[1764057650230,0.68,136.48,136.43,50.0]
[1764057650231,5.49094342,136.47,136.43,50.0]
[1764057650533,5.49094342,136.47,136.43,57.3296952]
[1764057650725,0.68,136.46,136.43,57.3296952]
[1764057651119,0.68,136.46,136.43,7.3296952]
[1764057651707,0.68,136.46,136.43,7.9996952]
[1764057651906,0.68,136.46,136.43,7.3296952]
[1764057652107,5.49094342,136.49,136.45,50.0]
[1764057652310,0.68,136.5,136.47,5.49094342]
[1764057652617,0.68,136.5,136.46,3.26]
[1764057652618,0.68,136.5,136.46,8.75094342]
[1764057653118,13.49698363,136.5,136.46,3.26]
[1764057653627,0.7,136.49,136.46,3.26]
[1764057653824,0.7,136.49,136.46,10.58809554]
[1764057654132,12.81663941,136.51,136.46,16.07903896]
[1764057654319,0.7,136.5,136.46,16.07903896]
[1764057654518,0.7,136.5,136.46,16.78903896]
[1764057654731,0.7,136.5,136.47,0.71]
[1764057655235,0.7,136.5,136.46,16.07903896]
[1764057655439,0.7,136.5,136.46,8.75094342]
[1764057655739,13.5170237,136.5,136.46,8.03800451]
[1764057655909,13.5170237,136.5,136.47,3.26]
[1764057656113,13.5170237,136.5,136.46,13.52894793]
[1764057656314,0.7,136.5,136.47,3.26]
[1764057656510,6.19094342,136.5,136.47,3.26]
[1764057657014,0.7,136.49,136.47,3.26]
[1764057657842,0.7,136.49,136.47,10.5875958]
[1764057658041,13.51662743,136.51,136.47,11.2775958]
[1764057658347,13.51662743,136.51,136.47,3.95]
[1764057658543,0.7,136.51,136.47,66.76838145]
[1764057659130,13.51649994,136.51,136.47,53.95]
[1764057659332,8.02555652,136.51,136.47,53.26]
[1764057659524,0.7,136.5,136.47,60.58759786]
[1764057659720,0.7,136.51,136.47,66.07854128]
[1764057660037,13.51654631,136.51,136.47,53.95]
[1764057660232,13.51654631,136.51,136.47,61.27761118]
[1764057660434,0.7,136.5,136.47,60.58761118]
[1764057660632,6.19094342,136.5,136.47,10.58761118]
[1764057661331,6.19094342,136.5,136.47,3.26]
[1764057661533,6.19094342,136.49,136.47,3.26]
[1764057661927,6.19094342,136.48,136.43,68.32424114]
[1764057662142,0.7,136.48,136.44,10.58903339]
[1764057662351,6.19094342,136.48,136.44,11.27903339]
[1764057662719,0.7,136.47,136.44,10.58903339]
[1764057663122,5.49094342,136.48,136.44,16.76997681]
[1764057663348,0.7,136.48,136.45,50.0]
[1764057663539,9.45094342,136.51,136.46,8.75094342]
[1764057663823,5.49094342,136.52,136.47,5.49094342]
[1764057664031,0.7,136.51,136.47,5.49094342]
[1764057664446,0.7,136.51,136.46,3.95]
[1764057664447,6.19094342,136.51,136.46,9.44094342]
[1764057664941,6.19094342,136.5,136.46,9.44094342]
[1764057665334,0.7,136.5,136.47,7.32761779]
[1764057665535,0.7,136.5,136.46,3.95]
[1764057665536,13.51701533,136.5,136.46,3.95]
[1764057665737,5.49094342,136.48,136.43,56.32310499]
[1764057665941,5.49094342,136.47,136.44,3.26]
[1764057666432,6.19094342,136.47,136.44,10.58916029]
[1764057666746,0.7,136.47,136.44,3.26]
[1764057666946,6.19094342,136.47,136.44,3.26]
[1764057667328,0.7,136.46,136.44,3.26]
[1764057667723,13.51914804,136.46,136.44,3.26]
[1764057667947,0.7,136.46,136.44,3.26]
[1764057670744,0.7,136.46,136.43,50.0]
[1764057670949,5.49094342,136.45,136.43,50.0]
[1764057671257,6.19094342,136.46,136.43,50.0]
[1764057671555,0.7,136.45,136.42,10.59022822]
[1764057672736,0.7,136.45,136.42,3.26]
[1764057673343,0.7,136.45,136.38,19.568864]
[1764057673543,0.7,136.45,136.4,55.49094342]
[1764057673742,0.7,136.45,136.41,3.26]
[1764057674549,8.02871187,136.45,136.41,3.26]
[1764057674752,0.7,136.45,136.42,7.33030347]
[1764057674950,0.7,136.47,136.43,58.75094342]
[1764057675157,0.7,136.46,136.43,50.0]
[1764057675342,3.96,136.46,136.4,50.0]
[1764057675658,5.49094342,136.42,136.38,53.95]
[1764057675828,0.7,136.45,136.38,59.44094342]
[1764057676032,3.26,136.46,136.38,59.44094342]
[1764057676033,0.7,136.46,136.41,5.49094342]
[1764057676252,5.49094342,136.45,136.41,3.26]
[1764057676658,3.01386692,136.45,136.41,3.26]
[1764057676839,2.31386692,136.45,136.41,10.59061306]
[1764057677164,0.7,136.44,136.41,10.59061306]
[1764057677455,3.01386692,136.44,136.41,3.26]
[1764057677659,3.01386692,136.44,136.4,59.64508977]
[1764057677660,2.31386692,136.42,136.4,3.26]
[1764057678059,0.7,136.42,136.4,3.26]
[1764057680549,17.008864,136.45,136.4,11.28124286]
[1764057680874,17.008864,136.44,136.4,10.59124286]
[1764057681038,26.60305361,136.44,136.4,10.59124286]
[1764057681238,10.29418961,136.43,136.4,10.59124286]
[1764057681758,0.7,136.42,136.4,10.59124286]
[1764057681949,0.7,136.42,136.4,3.26]
[1764057683655,16.308864,136.41,136.4,3.26]
[1764057684779,16.308864,136.41,136.36,18.61754769]
[1764057684780,10.30418961,136.41,136.36,0.28432314]
[1764057684984,10.30418961,136.4,136.37,3.26]
[1764057685654,0.71,136.4,136.37,3.26]
[1764057685854,0.71,136.4,136.37,53.26]
[1764057686488,0.71,136.4,136.36,8.01318389]
[1764057686489,10.30418961,136.4,136.36,8.01318389]
[1764057686651,10.30418961,136.4,136.37,3.26]
[1764057686856,0.71,136.39,136.37,3.26]
[1764057687057,10.30418961,136.39,136.37,3.26]
[1764057687480,0.71,136.39,136.37,3.26]
[1764057689091,0.71,136.4,136.37,10.59290242]
[1764057690501,39.94833729,136.42,136.37,3.26]
[1764057690806,36.62809454,136.51,136.4,9.59418961]
[1764057690963,36.62809454,136.51,136.38,0.96432314]
[1764057690964,12.72660967,136.46,136.42,9.59418961]
[1764057691288,0.71,136.46,136.42,9.59418961]
[1764057691483,0.71,136.47,136.43,0.68]
[1764057691788,9.59418961,136.46,136.41,53.94]
[1764057692165,10.30418961,136.46,136.41,53.94]
[1764057692389,10.30418961,136.46,136.41,53.26]
[1764057692566,0.71,136.46,136.42,0.96432314]
[1764057692760,0.71,136.46,136.43,50.0]
[1764057692979,18.31515228,136.5,136.43,50.0]
[1764057692980,120.31277811,136.52,136.45,50.0]
[1764057693186,10.30418961,136.51,136.46,0.28432314]
[1764057693366,10.30418961,136.51,136.46,0.96432314]
[1764057693574,10.30418961,136.5,136.46,0.96432314]
[1764057694096,0.71,136.5,136.47,53.26]
[1764057694390,17.62912759,136.52,136.47,63.53418961]
[1764057694590,0.71,136.51,136.47,53.94]
[1764057694995,16.308864,136.51,136.48,0.68]
[1764057695167,10.30418961,136.53,136.49,50.0]
[1764057695367,12.85418961,136.54,136.5,0.96432314]
[1764057695676,0.71,136.55,136.5,13.81851275]
[1764057695677,9.59418961,136.55,136.5,13.81851275]
[1764057695886,17.62758797,136.55,136.5,4.22432314]
[1764057696083,10.30418961,136.54,136.5,4.22432314]
[1764057697278,10.30418961,136.54,136.5,11.55020833]
[1764057697981,16.308864,136.55,136.5,10.87020833]
[1764057698188,16.308864,136.55,136.49,59.59418961]
[1764057698189,10.30418961,136.54,136.51,3.26]
[1764057698699,0.71,136.53,136.45,50.68]
[1764057698912,25.90305361,136.52,136.47,60.27418961]
[1764057699106,9.59418961,136.51,136.48,3.26]
[1764057699611,0.71,136.5,136.48,3.26]
[1764057699776,10.30418961,136.5,136.48,3.26]
[1764057699977,17.018864,136.52,136.48,3.26]
[1764057700211,10.30418961,136.51,136.48,3.26]
[1764057700582,10.30418961,136.5,136.48,3.26]
[1764057700788,10.30418961,136.5,136.47,53.26]
[1764057701389,10.30418961,136.5,136.47,3.26]
[1764057701589,9.59418961,136.48,136.45,3.26]
[1764057701901,17.018864,136.49,136.43,58.00941394]
[1764057702201,17.63141185,136.48,136.44,3.26]
[1764057702573,10.30418961,136.47,136.44,3.26]
[1764057702777,8.03722224,136.48,136.44,3.94]
[1764057703006,9.59418961,136.47,136.44,3.94]
[1764057703189,17.63141185,136.48,136.44,0.68]
[1764057703389,17.63141185,136.48,136.44,3.94]
[1764057703779,8.03722224,136.48,136.44,3.26]
[1764057704101,39.6510922,136.5,136.46,50.0]
[1764057704405,33.93918328,136.5,136.46,53.26]
[1764057704573,33.93918328,136.5,136.46,53.94]
[1764057705078,33.93918328,136.5,136.46,61.2680272]
[1764057705284,26.61305361,136.5,136.46,61.2680272]
[1764057705981,16.308864,136.5,136.47,0.68]
[1764057706188,16.308864,136.5,136.47,8.00761459]
[1764057706399,16.308864,136.5,136.47,0.68]
[1764057706583,16.308864,136.5,136.47,8.00751951]
[1764057706790,7.32475795,136.53,136.48,50.28432314]
[1764057707097,17.62894756,136.53,136.49,0.68]
[1764057707689,10.30418961,136.55,136.5,53.26]
[1764057707892,0.71,136.55,136.5,62.85418961]
[1764057708107,8.03332995,136.55,136.51,8.00528587]
[1764057708297,8.03332995,136.55,136.52,3.26]
[1764057708496,9.59418961,136.56,136.52,3.26]
[1764057708807,10.30418961,136.55,136.52,3.26]
[1764057709984,10.30418961,136.54,136.51,3.26]
[1764057710390,8.03397335,136.54,136.51,3.26]
[1764057710594,17.62816296,136.54,136.51,3.26]
[1764057710805,8.03397335,136.54,136.51,3.26]
[1764057710986,17.62816296,136.54,136.51,3.26]
[1764057711184,7.32334414,136.55,136.51,3.94]
[1764057711489,7.32334414,136.55,136.51,3.26]
[1764057711690,0.71,136.54,136.51,3.26]
[1764057711886,10.30418961,136.54,136.51,3.26]
[1764057712090,10.30418961,136.53,136.48,50.0]
[1764057712299,9.59418961,136.52,136.49,3.26]
[1764057712508,9.59418961,136.53,136.49,11.26651363]
[1764057712705,20.88774264,136.55,136.5,50.68]
[1764057713393,10.27418961,136.54,136.5,50.68]
[1764057713905,0.68,136.54,136.5,50.68]
[1764057714103,0.68,136.54,136.5,50.71]
[1764057714416,16.308864,136.55,136.51,8.31972653]
[1764057714596,16.308864,136.55,136.52,3.26]
[1764057714906,23.63219943,136.55,136.52,3.26]
[1764057715285,25.90305361,136.55,136.51,0.28432314]
[1764057715484,0.68,136.54,136.51,3.54432314]
[1764057716091,10.27418961,136.54,136.51,3.54432314]
[1764057716503,0.68,136.53,136.51,3.26]
[1764057716705,0.68,136.53,136.5,0.28432314]
[1764057717011,10.27418961,136.53,136.5,3.54432314]